{"text_format":"3","workbook":"xlsx","n_sheets":3,"sheets":["Útnyilvántartás","Nyilvántartási adatok","számítások"],"not_rendered":{"charts":1,"defined_names":17},"read":"whole","date_system":"1900"}

{"sheet":"Útnyilvántartás","index":0,"n_rows":29,"n_cols":5,"rows_kept":29,"merged":[[0,1,1,5]]}
[null,"ÚTNYILVÁNTARTÁS"]
{"$rows_empty":9}
[null,null,"MEGTÉRÍTENDŐ",null,"ÖSSZESEN"]
[null,null,"MÉRFÖLD",null,"VISSZATÉRÍTÉS"]
[]
[]
[]
[]
[null,null,"2012-05-01",null,"2012-05-10"]
[]
[null,null,"IDŐSZAK",null,"IDŐSZAK"]
[null,null,"KEZDETE",null,"VÉGE"]
[]
[]
[]
[]
[]
[null,null,54,null,{"v":9800,"d":"9,800"}]
[]
[null,null,"VISSZATÉRÍTÉS",null,"ELŐZŐ ÜZEMANYAGÁLLÁS"]
[null,null,"¢/mérföld",null,"KILOMÉTER-SZÁMLÁLÓ"]

{"sheet":"Nyilvántartási adatok","index":1,"n_rows":19,"n_cols":15,"rows_kept":19,"merged":[[0,1,1,4]]}
[null,"ÚTNYILVÁNTARTÁS"]
[{"$nulls":14}," "]
[]
[]
[null,"DÁTUM","TEVÉKENYSÉG","1. SZÁMLÁLÓÁLLÁS","HELY","2. SZÁMLÁLÓÁLLÁS","CÉLHELY","VISSZATÉRÍTÉS","GALLON","KÖLTSÉG","MÉRFÖLD","MPG","¢/MÉRFÖLD","MEGJEGYZÉSEK"]
[null,"2012-05-01","Út",{"v":10123,"d":"10,123"},"Chevron – Fő utca",{"v":10130,"d":"10,130"},null,null,15.56,{"v":64.11,"d":"64.11 Ft"},{"$f":"kilométer","v":7},{"$f":"IF(OR(LEN(adatok[[#This Row],[2. SZÁMLÁLÓÁLLÁS]]),adatok[[#This Row],[1. SZÁMLÁLÓÁLLÁS]]=\"\"),\"\",IFERROR(adatok[[#This Row],[MÉRFÖLD]]/adatok[[#This Row],[GALLON]],\"\"))","v":""},{"$f":"IF(adatok[[#This Row],[MPG]]=\"\",\"\",100*adatok[[#This Row],[KÖLTSÉG]]/adatok[[#This Row],[MÉRFÖLD]])","v":""}]
[null,"2012-05-01","Út",{"v":10130,"d":"10,130"},"Iroda",{"v":10200,"d":"10,200"},"Cseresznye utca","Igen",null,"",{"$f":"kilométer","v":70},{"$f":"IF(OR(LEN(adatok[[#This Row],[2. SZÁMLÁLÓÁLLÁS]]),adatok[[#This Row],[1. SZÁMLÁLÓÁLLÁS]]=\"\"),\"\",IFERROR(adatok[[#This Row],[MÉRFÖLD]]/adatok[[#This Row],[GALLON]],\"\"))","v":""},{"$f":"IF(adatok[[#This Row],[MPG]]=\"\",\"\",100*adatok[[#This Row],[KÖLTSÉG]]/adatok[[#This Row],[MÉRFÖLD]])","v":""}]
[null,"2012-05-01","Út",{"v":10200,"d":"10,200"},"Smithfields",{"v":10285,"d":"10,285"},"Iroda","Igen",null,"",{"$f":"kilométer","v":85},{"$f":"IF(OR(LEN(adatok[[#This Row],[2. SZÁMLÁLÓÁLLÁS]]),adatok[[#This Row],[1. SZÁMLÁLÓÁLLÁS]]=\"\"),\"\",IFERROR(adatok[[#This Row],[MÉRFÖLD]]/adatok[[#This Row],[GALLON]],\"\"))","v":""},{"$f":"IF(adatok[[#This Row],[MPG]]=\"\",\"\",100*adatok[[#This Row],[KÖLTSÉG]]/adatok[[#This Row],[MÉRFÖLD]])","v":""}]
[null,"2012-05-02","Út",{"v":10285,"d":"10,285"},"Iroda",{"v":10450,"d":"10,450"},"Colo Borászat","Igen",null,"",{"$f":"kilométer","v":165},{"$f":"IF(OR(LEN(adatok[[#This Row],[2. SZÁMLÁLÓÁLLÁS]]),adatok[[#This Row],[1. SZÁMLÁLÓÁLLÁS]]=\"\"),\"\",IFERROR(adatok[[#This Row],[MÉRFÖLD]]/adatok[[#This Row],[GALLON]],\"\"))","v":""},{"$f":"IF(adatok[[#This Row],[MPG]]=\"\",\"\",100*adatok[[#This Row],[KÖLTSÉG]]/adatok[[#This Row],[MÉRFÖLD]])","v":""}]
[null,"2012-05-02","Üzemanyag",{"v":10450,"d":"10,450"},"Shell",{"$nulls":3},{"v":11.2,"d":"11.20"},{"v":55.42,"d":"55.42 Ft"},{"$f":"kilométer","v":650},{"$f":"IF(OR(LEN(adatok[[#This Row],[2. SZÁMLÁLÓÁLLÁS]]),adatok[[#This Row],[1. SZÁMLÁLÓÁLLÁS]]=\"\"),\"\",IFERROR(adatok[[#This Row],[MÉRFÖLD]]/adatok[[#This Row],[GALLON]],\"\"))","v":{"v":58.03571428571429,"d":"58.0"}},{"$f":"IF(adatok[[#This Row],[MPG]]=\"\",\"\",100*adatok[[#This Row],[KÖLTSÉG]]/adatok[[#This Row],[MÉRFÖLD]])","v":{"v":8.526153846153846,"d":"8.5"}}]
[null,"2012-05-02","Út",{"v":10500,"d":"10,500"},"Colo Borászat",{"v":10518,"d":"10,518"},"Iroda","Igen",null,"",{"$f":"kilométer","v":18},{"$f":"IF(OR(LEN(adatok[[#This Row],[2. SZÁMLÁLÓÁLLÁS]]),adatok[[#This Row],[1. SZÁMLÁLÓÁLLÁS]]=\"\"),\"\",IFERROR(adatok[[#This Row],[MÉRFÖLD]]/adatok[[#This Row],[GALLON]],\"\"))","v":""},{"$f":"IF(adatok[[#This Row],[MPG]]=\"\",\"\",100*adatok[[#This Row],[KÖLTSÉG]]/adatok[[#This Row],[MÉRFÖLD]])","v":""}]
[null,"2012-05-03","Út",{"v":10518,"d":"10,518"},"Iroda",{"v":10745,"d":"10,745"},"Iroda","Igen",null,"",{"$f":"kilométer","v":227},{"$f":"IF(OR(LEN(adatok[[#This Row],[2. SZÁMLÁLÓÁLLÁS]]),adatok[[#This Row],[1. SZÁMLÁLÓÁLLÁS]]=\"\"),\"\",IFERROR(adatok[[#This Row],[MÉRFÖLD]]/adatok[[#This Row],[GALLON]],\"\"))","v":""},{"$f":"IF(adatok[[#This Row],[MPG]]=\"\",\"\",100*adatok[[#This Row],[KÖLTSÉG]]/adatok[[#This Row],[MÉRFÖLD]])","v":""}]
[null,"2012-05-04","Üzemanyag",{"v":10745,"d":"10,745"},"Chevron – Fő utca",{"$nulls":3},{"v":16.6,"d":"16.60"},{"v":69.24,"d":"69.24 Ft"},{"$f":"kilométer","v":295},{"$f":"IF(OR(LEN(adatok[[#This Row],[2. SZÁMLÁLÓÁLLÁS]]),adatok[[#This Row],[1. SZÁMLÁLÓÁLLÁS]]=\"\"),\"\",IFERROR(adatok[[#This Row],[MÉRFÖLD]]/adatok[[#This Row],[GALLON]],\"\"))","v":{"v":17.771084337349397,"d":"17.8"}},{"$f":"IF(adatok[[#This Row],[MPG]]=\"\",\"\",100*adatok[[#This Row],[KÖLTSÉG]]/adatok[[#This Row],[MÉRFÖLD]])","v":{"v":23.471186440677965,"d":"23.5"}}]
[null,"2012-05-04","Út",{"v":10745,"d":"10,745"},"Iroda",{"v":10800,"d":"10,800"},"Porterville","Igen",null,"",{"$f":"kilométer","v":55},{"$f":"IF(OR(LEN(adatok[[#This Row],[2. SZÁMLÁLÓÁLLÁS]]),adatok[[#This Row],[1. SZÁMLÁLÓÁLLÁS]]=\"\"),\"\",IFERROR(adatok[[#This Row],[MÉRFÖLD]]/adatok[[#This Row],[GALLON]],\"\"))","v":""},{"$f":"IF(adatok[[#This Row],[MPG]]=\"\",\"\",100*adatok[[#This Row],[KÖLTSÉG]]/adatok[[#This Row],[MÉRFÖLD]])","v":""}]
[null,"2012-05-04","Út",{"v":10800,"d":"10,800"},"Porterville",{"v":10875,"d":"10,875"},"Iroda","Igen",null,"",{"$f":"kilométer","v":75},{"$f":"IF(OR(LEN(adatok[[#This Row],[2. SZÁMLÁLÓÁLLÁS]]),adatok[[#This Row],[1. SZÁMLÁLÓÁLLÁS]]=\"\"),\"\",IFERROR(adatok[[#This Row],[MÉRFÖLD]]/adatok[[#This Row],[GALLON]],\"\"))","v":""},{"$f":"IF(adatok[[#This Row],[MPG]]=\"\",\"\",100*adatok[[#This Row],[KÖLTSÉG]]/adatok[[#This Row],[MÉRFÖLD]])","v":""}]
[null,"2012-05-07","Út",{"v":10875,"d":"10,875"},"Iroda",{"v":10921,"d":"10,921"},"Cseresznye utca","Igen",null,"",{"$f":"kilométer","v":46},{"$f":"IF(OR(LEN(adatok[[#This Row],[2. SZÁMLÁLÓÁLLÁS]]),adatok[[#This Row],[1. SZÁMLÁLÓÁLLÁS]]=\"\"),\"\",IFERROR(adatok[[#This Row],[MÉRFÖLD]]/adatok[[#This Row],[GALLON]],\"\"))","v":""},{"$f":"IF(adatok[[#This Row],[MPG]]=\"\",\"\",100*adatok[[#This Row],[KÖLTSÉG]]/adatok[[#This Row],[MÉRFÖLD]])","v":""}]
[null,"2012-05-07","Út",{"v":10921,"d":"10,921"},"Smithfields",{"v":10969,"d":"10,969"},"Iroda","Igen",null,"",{"$f":"kilométer","v":48},{"$f":"IF(OR(LEN(adatok[[#This Row],[2. SZÁMLÁLÓÁLLÁS]]),adatok[[#This Row],[1. SZÁMLÁLÓÁLLÁS]]=\"\"),\"\",IFERROR(adatok[[#This Row],[MÉRFÖLD]]/adatok[[#This Row],[GALLON]],\"\"))","v":""},{"$f":"IF(adatok[[#This Row],[MPG]]=\"\",\"\",100*adatok[[#This Row],[KÖLTSÉG]]/adatok[[#This Row],[MÉRFÖLD]])","v":""}]
[null,"2012-05-09","Út",{"v":10969,"d":"10,969"},"Iroda",{"v":11000,"d":"11,000"},"Riverside","Igen",null,"",{"$f":"kilométer","v":31},{"$f":"IF(OR(LEN(adatok[[#This Row],[2. SZÁMLÁLÓÁLLÁS]]),adatok[[#This Row],[1. SZÁMLÁLÓÁLLÁS]]=\"\"),\"\",IFERROR(adatok[[#This Row],[MÉRFÖLD]]/adatok[[#This Row],[GALLON]],\"\"))","v":""},{"$f":"IF(adatok[[#This Row],[MPG]]=\"\",\"\",100*adatok[[#This Row],[KÖLTSÉG]]/adatok[[#This Row],[MÉRFÖLD]])","v":""}]
[null,"2012-05-09","Út",{"v":11000,"d":"11,000"},"Riverside",{"v":11100,"d":"11,100"},"Otthon","Nem",null,"",{"$f":"kilométer","v":100},{"$f":"IF(OR(LEN(adatok[[#This Row],[2. SZÁMLÁLÓÁLLÁS]]),adatok[[#This Row],[1. SZÁMLÁLÓÁLLÁS]]=\"\"),\"\",IFERROR(adatok[[#This Row],[MÉRFÖLD]]/adatok[[#This Row],[GALLON]],\"\"))","v":""},{"$f":"IF(adatok[[#This Row],[MPG]]=\"\",\"\",100*adatok[[#This Row],[KÖLTSÉG]]/adatok[[#This Row],[MÉRFÖLD]])","v":""}]

{"sheet":"számítások","index":2,"n_rows":69,"n_cols":13,"rows_kept":69,"hidden":true}
["*** Hagyja rejtve ezt a munkalapot. ***"]
[]
[]
[]
[]
[{"$nulls":8},{"$f":"OFFSET(I9,,másodikTengely=\"Üzemanyagköltség\")","v":"¢/mérföld"}]
[{"$nulls":12},2]
[{"$nulls":7},"Út","Üzemanyag","Üzemanyag",null,"Második tengely:  ",{"$f":"REPT(\"MPG\",M7=1)&REPT(\"Üzemanyagköltség\",M7=2)","v":"Üzemanyagköltség"}]
[{"$nulls":7},"Megtett távolság","MPG","¢/mérföld"]
[null,null,"Megtérítendő távolság:  ",{"$f":"SUMIFS(adatok[MÉRFÖLD],adatok[VISSZATÉRÍTÉS],\"Igen\",adatok[DÁTUM],\">=\"&időszakVége,adatok[DÁTUM],\"<=\"&időszakKezdete)","v":820},null,1,{"$f":"időszakVége","v":"2012-05-01"},{"$f":"SUMIFS(adatok[MÉRFÖLD],adatok[DÁTUM],G10,adatok[TEVÉKENYSÉG],$H$8)","v":162},{"$f":"IFERROR(AVERAGEIFS(adatok[MPG],adatok[DÁTUM],G10,adatok[TEVÉKENYSÉG],$I$8),NA())","v":{"$error":"#N/A"}},{"$f":"IFERROR(AVERAGEIFS(adatok[¢/MÉRFÖLD],adatok[DÁTUM],G10,adatok[TEVÉKENYSÉG],$J$8),NA())","v":{"$error":"#N/A"}}]
[null,null,"Teljes megtérítendő költség:  ",{"$f":"D10*MegtérítésKilométerenként/100","v":{"v":442.8,"d":"442.80 Ft"}},null,2,{"$f":"G10+1","v":"2012-05-02"},{"$f":"SUMIFS(adatok[MÉRFÖLD],adatok[DÁTUM],G11,adatok[TEVÉKENYSÉG],$H$8)","v":183},{"$f":"IFERROR(AVERAGEIFS(adatok[MPG],adatok[DÁTUM],G11,adatok[TEVÉKENYSÉG],$I$8),NA())","v":{"v":58.03571428571429,"d":"58.0"}},{"$f":"IFERROR(AVERAGEIFS(adatok[¢/MÉRFÖLD],adatok[DÁTUM],G11,adatok[TEVÉKENYSÉG],$J$8),NA())","v":{"v":8.526153846153846,"d":"8.5"}}]
[{"$nulls":5},3,"2012-05-03",{"$f":"SUMIFS(adatok[MÉRFÖLD],adatok[DÁTUM],G12,adatok[TEVÉKENYSÉG],$H$8)","v":227},{"$f":"IFERROR(AVERAGEIFS(adatok[MPG],adatok[DÁTUM],G12,adatok[TEVÉKENYSÉG],$I$8),NA())","v":{"$error":"#N/A"}},{"$f":"IFERROR(AVERAGEIFS(adatok[¢/MÉRFÖLD],adatok[DÁTUM],G12,adatok[TEVÉKENYSÉG],$J$8),NA())","v":{"$error":"#N/A"}}]
[{"$nulls":5},4,"2012-05-04",{"$f":"SUMIFS(adatok[MÉRFÖLD],adatok[DÁTUM],G13,adatok[TEVÉKENYSÉG],$H$8)","v":130},{"$f":"IFERROR(AVERAGEIFS(adatok[MPG],adatok[DÁTUM],G13,adatok[TEVÉKENYSÉG],$I$8),NA())","v":{"v":17.771084337349397,"d":"17.8"}},{"$f":"IFERROR(AVERAGEIFS(adatok[¢/MÉRFÖLD],adatok[DÁTUM],G13,adatok[TEVÉKENYSÉG],$J$8),NA())","v":{"v":23.471186440677965,"d":"23.5"}}]
[{"$nulls":5},5,"2012-05-05",{"$f":"SUMIFS(adatok[MÉRFÖLD],adatok[DÁTUM],G14,adatok[TEVÉKENYSÉG],$H$8)","v":0},{"$f":"IFERROR(AVERAGEIFS(adatok[MPG],adatok[DÁTUM],G14,adatok[TEVÉKENYSÉG],$I$8),NA())","v":{"$error":"#N/A"}},{"$f":"IFERROR(AVERAGEIFS(adatok[¢/MÉRFÖLD],adatok[DÁTUM],G14,adatok[TEVÉKENYSÉG],$J$8),NA())","v":{"$error":"#N/A"}}]
[{"$nulls":5},6,"2012-05-06",{"$f":"SUMIFS(adatok[MÉRFÖLD],adatok[DÁTUM],G15,adatok[TEVÉKENYSÉG],$H$8)","v":0},{"$f":"IFERROR(AVERAGEIFS(adatok[MPG],adatok[DÁTUM],G15,adatok[TEVÉKENYSÉG],$I$8),NA())","v":{"$error":"#N/A"}},{"$f":"IFERROR(AVERAGEIFS(adatok[¢/MÉRFÖLD],adatok[DÁTUM],G15,adatok[TEVÉKENYSÉG],$J$8),NA())","v":{"$error":"#N/A"}}]
[{"$nulls":5},7,"2012-05-07",{"$f":"SUMIFS(adatok[MÉRFÖLD],adatok[DÁTUM],G16,adatok[TEVÉKENYSÉG],$H$8)","v":94},{"$f":"IFERROR(AVERAGEIFS(adatok[MPG],adatok[DÁTUM],G16,adatok[TEVÉKENYSÉG],$I$8),NA())","v":{"$error":"#N/A"}},{"$f":"IFERROR(AVERAGEIFS(adatok[¢/MÉRFÖLD],adatok[DÁTUM],G16,adatok[TEVÉKENYSÉG],$J$8),NA())","v":{"$error":"#N/A"}}]
[{"$nulls":5},8,"2012-05-08",{"$f":"SUMIFS(adatok[MÉRFÖLD],adatok[DÁTUM],G17,adatok[TEVÉKENYSÉG],$H$8)","v":0},{"$f":"IFERROR(AVERAGEIFS(adatok[MPG],adatok[DÁTUM],G17,adatok[TEVÉKENYSÉG],$I$8),NA())","v":{"$error":"#N/A"}},{"$f":"IFERROR(AVERAGEIFS(adatok[¢/MÉRFÖLD],adatok[DÁTUM],G17,adatok[TEVÉKENYSÉG],$J$8),NA())","v":{"$error":"#N/A"}}]
[{"$nulls":5},9,"2012-05-09",{"$f":"SUMIFS(adatok[MÉRFÖLD],adatok[DÁTUM],G18,adatok[TEVÉKENYSÉG],$H$8)","v":131},{"$f":"IFERROR(AVERAGEIFS(adatok[MPG],adatok[DÁTUM],G18,adatok[TEVÉKENYSÉG],$I$8),NA())","v":{"$error":"#N/A"}},{"$f":"IFERROR(AVERAGEIFS(adatok[¢/MÉRFÖLD],adatok[DÁTUM],G18,adatok[TEVÉKENYSÉG],$J$8),NA())","v":{"$error":"#N/A"}}]
[{"$nulls":5},10,"2012-05-10",{"$f":"SUMIFS(adatok[MÉRFÖLD],adatok[DÁTUM],G19,adatok[TEVÉKENYSÉG],$H$8)","v":0},{"$f":"IFERROR(AVERAGEIFS(adatok[MPG],adatok[DÁTUM],G19,adatok[TEVÉKENYSÉG],$I$8),NA())","v":{"$error":"#N/A"}},{"$f":"IFERROR(AVERAGEIFS(adatok[¢/MÉRFÖLD],adatok[DÁTUM],G19,adatok[TEVÉKENYSÉG],$J$8),NA())","v":{"$error":"#N/A"}}]
[{"$nulls":5},11,"2012-05-11",{"$f":"SUMIFS(adatok[MÉRFÖLD],adatok[DÁTUM],G20,adatok[TEVÉKENYSÉG],$H$8)","v":0},{"$f":"IFERROR(AVERAGEIFS(adatok[MPG],adatok[DÁTUM],G20,adatok[TEVÉKENYSÉG],$I$8),NA())","v":{"$error":"#N/A"}},{"$f":"IFERROR(AVERAGEIFS(adatok[¢/MÉRFÖLD],adatok[DÁTUM],G20,adatok[TEVÉKENYSÉG],$J$8),NA())","v":{"$error":"#N/A"}}]
[{"$nulls":5},12,"2012-05-12",{"$f":"SUMIFS(adatok[MÉRFÖLD],adatok[DÁTUM],G21,adatok[TEVÉKENYSÉG],$H$8)","v":0},{"$f":"IFERROR(AVERAGEIFS(adatok[MPG],adatok[DÁTUM],G21,adatok[TEVÉKENYSÉG],$I$8),NA())","v":{"$error":"#N/A"}},{"$f":"IFERROR(AVERAGEIFS(adatok[¢/MÉRFÖLD],adatok[DÁTUM],G21,adatok[TEVÉKENYSÉG],$J$8),NA())","v":{"$error":"#N/A"}}]
[{"$nulls":5},13,"2012-05-13",{"$f":"SUMIFS(adatok[MÉRFÖLD],adatok[DÁTUM],G22,adatok[TEVÉKENYSÉG],$H$8)","v":0},{"$f":"IFERROR(AVERAGEIFS(adatok[MPG],adatok[DÁTUM],G22,adatok[TEVÉKENYSÉG],$I$8),NA())","v":{"$error":"#N/A"}},{"$f":"IFERROR(AVERAGEIFS(adatok[¢/MÉRFÖLD],adatok[DÁTUM],G22,adatok[TEVÉKENYSÉG],$J$8),NA())","v":{"$error":"#N/A"}}]
[{"$nulls":5},14,"2012-05-14",{"$f":"SUMIFS(adatok[MÉRFÖLD],adatok[DÁTUM],G23,adatok[TEVÉKENYSÉG],$H$8)","v":0},{"$f":"IFERROR(AVERAGEIFS(adatok[MPG],adatok[DÁTUM],G23,adatok[TEVÉKENYSÉG],$I$8),NA())","v":{"$error":"#N/A"}},{"$f":"IFERROR(AVERAGEIFS(adatok[¢/MÉRFÖLD],adatok[DÁTUM],G23,adatok[TEVÉKENYSÉG],$J$8),NA())","v":{"$error":"#N/A"}}]
[{"$nulls":5},15,"2012-05-15",{"$f":"SUMIFS(adatok[MÉRFÖLD],adatok[DÁTUM],G24,adatok[TEVÉKENYSÉG],$H$8)","v":0},{"$f":"IFERROR(AVERAGEIFS(adatok[MPG],adatok[DÁTUM],G24,adatok[TEVÉKENYSÉG],$I$8),NA())","v":{"$error":"#N/A"}},{"$f":"IFERROR(AVERAGEIFS(adatok[¢/MÉRFÖLD],adatok[DÁTUM],G24,adatok[TEVÉKENYSÉG],$J$8),NA())","v":{"$error":"#N/A"}}]
[{"$nulls":5},16,"2012-05-16",{"$f":"SUMIFS(adatok[MÉRFÖLD],adatok[DÁTUM],G25,adatok[TEVÉKENYSÉG],$H$8)","v":0},{"$f":"IFERROR(AVERAGEIFS(adatok[MPG],adatok[DÁTUM],G25,adatok[TEVÉKENYSÉG],$I$8),NA())","v":{"$error":"#N/A"}},{"$f":"IFERROR(AVERAGEIFS(adatok[¢/MÉRFÖLD],adatok[DÁTUM],G25,adatok[TEVÉKENYSÉG],$J$8),NA())","v":{"$error":"#N/A"}}]
[{"$nulls":5},17,"2012-05-17",{"$f":"SUMIFS(adatok[MÉRFÖLD],adatok[DÁTUM],G26,adatok[TEVÉKENYSÉG],$H$8)","v":0},{"$f":"IFERROR(AVERAGEIFS(adatok[MPG],adatok[DÁTUM],G26,adatok[TEVÉKENYSÉG],$I$8),NA())","v":{"$error":"#N/A"}},{"$f":"IFERROR(AVERAGEIFS(adatok[¢/MÉRFÖLD],adatok[DÁTUM],G26,adatok[TEVÉKENYSÉG],$J$8),NA())","v":{"$error":"#N/A"}}]
[{"$nulls":5},18,"2012-05-18",{"$f":"SUMIFS(adatok[MÉRFÖLD],adatok[DÁTUM],G27,adatok[TEVÉKENYSÉG],$H$8)","v":0},{"$f":"IFERROR(AVERAGEIFS(adatok[MPG],adatok[DÁTUM],G27,adatok[TEVÉKENYSÉG],$I$8),NA())","v":{"$error":"#N/A"}},{"$f":"IFERROR(AVERAGEIFS(adatok[¢/MÉRFÖLD],adatok[DÁTUM],G27,adatok[TEVÉKENYSÉG],$J$8),NA())","v":{"$error":"#N/A"}}]
[{"$nulls":5},19,"2012-05-19",{"$f":"SUMIFS(adatok[MÉRFÖLD],adatok[DÁTUM],G28,adatok[TEVÉKENYSÉG],$H$8)","v":0},{"$f":"IFERROR(AVERAGEIFS(adatok[MPG],adatok[DÁTUM],G28,adatok[TEVÉKENYSÉG],$I$8),NA())","v":{"$error":"#N/A"}},{"$f":"IFERROR(AVERAGEIFS(adatok[¢/MÉRFÖLD],adatok[DÁTUM],G28,adatok[TEVÉKENYSÉG],$J$8),NA())","v":{"$error":"#N/A"}}]
[{"$nulls":5},20,"2012-05-20",{"$f":"SUMIFS(adatok[MÉRFÖLD],adatok[DÁTUM],G29,adatok[TEVÉKENYSÉG],$H$8)","v":0},{"$f":"IFERROR(AVERAGEIFS(adatok[MPG],adatok[DÁTUM],G29,adatok[TEVÉKENYSÉG],$I$8),NA())","v":{"$error":"#N/A"}},{"$f":"IFERROR(AVERAGEIFS(adatok[¢/MÉRFÖLD],adatok[DÁTUM],G29,adatok[TEVÉKENYSÉG],$J$8),NA())","v":{"$error":"#N/A"}}]
[{"$nulls":5},21,"2012-05-21",{"$f":"SUMIFS(adatok[MÉRFÖLD],adatok[DÁTUM],G30,adatok[TEVÉKENYSÉG],$H$8)","v":0},{"$f":"IFERROR(AVERAGEIFS(adatok[MPG],adatok[DÁTUM],G30,adatok[TEVÉKENYSÉG],$I$8),NA())","v":{"$error":"#N/A"}},{"$f":"IFERROR(AVERAGEIFS(adatok[¢/MÉRFÖLD],adatok[DÁTUM],G30,adatok[TEVÉKENYSÉG],$J$8),NA())","v":{"$error":"#N/A"}}]
[{"$nulls":5},22,"2012-05-22",{"$f":"SUMIFS(adatok[MÉRFÖLD],adatok[DÁTUM],G31,adatok[TEVÉKENYSÉG],$H$8)","v":0},{"$f":"IFERROR(AVERAGEIFS(adatok[MPG],adatok[DÁTUM],G31,adatok[TEVÉKENYSÉG],$I$8),NA())","v":{"$error":"#N/A"}},{"$f":"IFERROR(AVERAGEIFS(adatok[¢/MÉRFÖLD],adatok[DÁTUM],G31,adatok[TEVÉKENYSÉG],$J$8),NA())","v":{"$error":"#N/A"}}]
[{"$nulls":5},23,"2012-05-23",{"$f":"SUMIFS(adatok[MÉRFÖLD],adatok[DÁTUM],G32,adatok[TEVÉKENYSÉG],$H$8)","v":0},{"$f":"IFERROR(AVERAGEIFS(adatok[MPG],adatok[DÁTUM],G32,adatok[TEVÉKENYSÉG],$I$8),NA())","v":{"$error":"#N/A"}},{"$f":"IFERROR(AVERAGEIFS(adatok[¢/MÉRFÖLD],adatok[DÁTUM],G32,adatok[TEVÉKENYSÉG],$J$8),NA())","v":{"$error":"#N/A"}}]
[{"$nulls":5},24,"2012-05-24",{"$f":"SUMIFS(adatok[MÉRFÖLD],adatok[DÁTUM],G33,adatok[TEVÉKENYSÉG],$H$8)","v":0},{"$f":"IFERROR(AVERAGEIFS(adatok[MPG],adatok[DÁTUM],G33,adatok[TEVÉKENYSÉG],$I$8),NA())","v":{"$error":"#N/A"}},{"$f":"IFERROR(AVERAGEIFS(adatok[¢/MÉRFÖLD],adatok[DÁTUM],G33,adatok[TEVÉKENYSÉG],$J$8),NA())","v":{"$error":"#N/A"}}]
[{"$nulls":5},25,"2012-05-25",{"$f":"SUMIFS(adatok[MÉRFÖLD],adatok[DÁTUM],G34,adatok[TEVÉKENYSÉG],$H$8)","v":0},{"$f":"IFERROR(AVERAGEIFS(adatok[MPG],adatok[DÁTUM],G34,adatok[TEVÉKENYSÉG],$I$8),NA())","v":{"$error":"#N/A"}},{"$f":"IFERROR(AVERAGEIFS(adatok[¢/MÉRFÖLD],adatok[DÁTUM],G34,adatok[TEVÉKENYSÉG],$J$8),NA())","v":{"$error":"#N/A"}}]
[{"$nulls":5},26,"2012-05-26",{"$f":"SUMIFS(adatok[MÉRFÖLD],adatok[DÁTUM],G35,adatok[TEVÉKENYSÉG],$H$8)","v":0},{"$f":"IFERROR(AVERAGEIFS(adatok[MPG],adatok[DÁTUM],G35,adatok[TEVÉKENYSÉG],$I$8),NA())","v":{"$error":"#N/A"}},{"$f":"IFERROR(AVERAGEIFS(adatok[¢/MÉRFÖLD],adatok[DÁTUM],G35,adatok[TEVÉKENYSÉG],$J$8),NA())","v":{"$error":"#N/A"}}]
[{"$nulls":5},27,"2012-05-27",{"$f":"SUMIFS(adatok[MÉRFÖLD],adatok[DÁTUM],G36,adatok[TEVÉKENYSÉG],$H$8)","v":0},{"$f":"IFERROR(AVERAGEIFS(adatok[MPG],adatok[DÁTUM],G36,adatok[TEVÉKENYSÉG],$I$8),NA())","v":{"$error":"#N/A"}},{"$f":"IFERROR(AVERAGEIFS(adatok[¢/MÉRFÖLD],adatok[DÁTUM],G36,adatok[TEVÉKENYSÉG],$J$8),NA())","v":{"$error":"#N/A"}}]
[{"$nulls":5},28,"2012-05-28",{"$f":"SUMIFS(adatok[MÉRFÖLD],adatok[DÁTUM],G37,adatok[TEVÉKENYSÉG],$H$8)","v":0},{"$f":"IFERROR(AVERAGEIFS(adatok[MPG],adatok[DÁTUM],G37,adatok[TEVÉKENYSÉG],$I$8),NA())","v":{"$error":"#N/A"}},{"$f":"IFERROR(AVERAGEIFS(adatok[¢/MÉRFÖLD],adatok[DÁTUM],G37,adatok[TEVÉKENYSÉG],$J$8),NA())","v":{"$error":"#N/A"}}]
[{"$nulls":5},29,"2012-05-29",{"$f":"SUMIFS(adatok[MÉRFÖLD],adatok[DÁTUM],G38,adatok[TEVÉKENYSÉG],$H$8)","v":0},{"$f":"IFERROR(AVERAGEIFS(adatok[MPG],adatok[DÁTUM],G38,adatok[TEVÉKENYSÉG],$I$8),NA())","v":{"$error":"#N/A"}},{"$f":"IFERROR(AVERAGEIFS(adatok[¢/MÉRFÖLD],adatok[DÁTUM],G38,adatok[TEVÉKENYSÉG],$J$8),NA())","v":{"$error":"#N/A"}}]
[{"$nulls":5},30,"2012-05-30",{"$f":"SUMIFS(adatok[MÉRFÖLD],adatok[DÁTUM],G39,adatok[TEVÉKENYSÉG],$H$8)","v":0},{"$f":"IFERROR(AVERAGEIFS(adatok[MPG],adatok[DÁTUM],G39,adatok[TEVÉKENYSÉG],$I$8),NA())","v":{"$error":"#N/A"}},{"$f":"IFERROR(AVERAGEIFS(adatok[¢/MÉRFÖLD],adatok[DÁTUM],G39,adatok[TEVÉKENYSÉG],$J$8),NA())","v":{"$error":"#N/A"}}]
[{"$nulls":5},31,"2012-05-31",{"$f":"SUMIFS(adatok[MÉRFÖLD],adatok[DÁTUM],G40,adatok[TEVÉKENYSÉG],$H$8)","v":0},{"$f":"IFERROR(AVERAGEIFS(adatok[MPG],adatok[DÁTUM],G40,adatok[TEVÉKENYSÉG],$I$8),NA())","v":{"$error":"#N/A"}},{"$f":"IFERROR(AVERAGEIFS(adatok[¢/MÉRFÖLD],adatok[DÁTUM],G40,adatok[TEVÉKENYSÉG],$J$8),NA())","v":{"$error":"#N/A"}}]
[{"$nulls":5},32,"2012-06-01",{"$f":"SUMIFS(adatok[MÉRFÖLD],adatok[DÁTUM],G41,adatok[TEVÉKENYSÉG],$H$8)","v":0},{"$f":"IFERROR(AVERAGEIFS(adatok[MPG],adatok[DÁTUM],G41,adatok[TEVÉKENYSÉG],$I$8),NA())","v":{"$error":"#N/A"}},{"$f":"IFERROR(AVERAGEIFS(adatok[¢/MÉRFÖLD],adatok[DÁTUM],G41,adatok[TEVÉKENYSÉG],$J$8),NA())","v":{"$error":"#N/A"}}]
[{"$nulls":5},33,"2012-06-02",{"$f":"SUMIFS(adatok[MÉRFÖLD],adatok[DÁTUM],G42,adatok[TEVÉKENYSÉG],$H$8)","v":0},{"$f":"IFERROR(AVERAGEIFS(adatok[MPG],adatok[DÁTUM],G42,adatok[TEVÉKENYSÉG],$I$8),NA())","v":{"$error":"#N/A"}},{"$f":"IFERROR(AVERAGEIFS(adatok[¢/MÉRFÖLD],adatok[DÁTUM],G42,adatok[TEVÉKENYSÉG],$J$8),NA())","v":{"$error":"#N/A"}}]
[{"$nulls":5},34,{"$f":"G42+1","v":"2012-06-03"},{"$f":"SUMIFS(adatok[MÉRFÖLD],adatok[DÁTUM],G43,adatok[TEVÉKENYSÉG],$H$8)","v":0},{"$f":"IFERROR(AVERAGEIFS(adatok[MPG],adatok[DÁTUM],G43,adatok[TEVÉKENYSÉG],$I$8),NA())","v":{"$error":"#N/A"}},{"$f":"IFERROR(AVERAGEIFS(adatok[¢/MÉRFÖLD],adatok[DÁTUM],G43,adatok[TEVÉKENYSÉG],$J$8),NA())","v":{"$error":"#N/A"}}]
[{"$nulls":5},35,"2012-06-04",{"$f":"SUMIFS(adatok[MÉRFÖLD],adatok[DÁTUM],G44,adatok[TEVÉKENYSÉG],$H$8)","v":0},{"$f":"IFERROR(AVERAGEIFS(adatok[MPG],adatok[DÁTUM],G44,adatok[TEVÉKENYSÉG],$I$8),NA())","v":{"$error":"#N/A"}},{"$f":"IFERROR(AVERAGEIFS(adatok[¢/MÉRFÖLD],adatok[DÁTUM],G44,adatok[TEVÉKENYSÉG],$J$8),NA())","v":{"$error":"#N/A"}}]
[{"$nulls":5},36,"2012-06-05",{"$f":"SUMIFS(adatok[MÉRFÖLD],adatok[DÁTUM],G45,adatok[TEVÉKENYSÉG],$H$8)","v":0},{"$f":"IFERROR(AVERAGEIFS(adatok[MPG],adatok[DÁTUM],G45,adatok[TEVÉKENYSÉG],$I$8),NA())","v":{"$error":"#N/A"}},{"$f":"IFERROR(AVERAGEIFS(adatok[¢/MÉRFÖLD],adatok[DÁTUM],G45,adatok[TEVÉKENYSÉG],$J$8),NA())","v":{"$error":"#N/A"}}]
[{"$nulls":5},37,"2012-06-06",{"$f":"SUMIFS(adatok[MÉRFÖLD],adatok[DÁTUM],G46,adatok[TEVÉKENYSÉG],$H$8)","v":0},{"$f":"IFERROR(AVERAGEIFS(adatok[MPG],adatok[DÁTUM],G46,adatok[TEVÉKENYSÉG],$I$8),NA())","v":{"$error":"#N/A"}},{"$f":"IFERROR(AVERAGEIFS(adatok[¢/MÉRFÖLD],adatok[DÁTUM],G46,adatok[TEVÉKENYSÉG],$J$8),NA())","v":{"$error":"#N/A"}}]
[{"$nulls":5},38,"2012-06-07",{"$f":"SUMIFS(adatok[MÉRFÖLD],adatok[DÁTUM],G47,adatok[TEVÉKENYSÉG],$H$8)","v":0},{"$f":"IFERROR(AVERAGEIFS(adatok[MPG],adatok[DÁTUM],G47,adatok[TEVÉKENYSÉG],$I$8),NA())","v":{"$error":"#N/A"}},{"$f":"IFERROR(AVERAGEIFS(adatok[¢/MÉRFÖLD],adatok[DÁTUM],G47,adatok[TEVÉKENYSÉG],$J$8),NA())","v":{"$error":"#N/A"}}]
[{"$nulls":5},39,"2012-06-08",{"$f":"SUMIFS(adatok[MÉRFÖLD],adatok[DÁTUM],G48,adatok[TEVÉKENYSÉG],$H$8)","v":0},{"$f":"IFERROR(AVERAGEIFS(adatok[MPG],adatok[DÁTUM],G48,adatok[TEVÉKENYSÉG],$I$8),NA())","v":{"$error":"#N/A"}},{"$f":"IFERROR(AVERAGEIFS(adatok[¢/MÉRFÖLD],adatok[DÁTUM],G48,adatok[TEVÉKENYSÉG],$J$8),NA())","v":{"$error":"#N/A"}}]
[{"$nulls":5},40,"2012-06-09",{"$f":"SUMIFS(adatok[MÉRFÖLD],adatok[DÁTUM],G49,adatok[TEVÉKENYSÉG],$H$8)","v":0},{"$f":"IFERROR(AVERAGEIFS(adatok[MPG],adatok[DÁTUM],G49,adatok[TEVÉKENYSÉG],$I$8),NA())","v":{"$error":"#N/A"}},{"$f":"IFERROR(AVERAGEIFS(adatok[¢/MÉRFÖLD],adatok[DÁTUM],G49,adatok[TEVÉKENYSÉG],$J$8),NA())","v":{"$error":"#N/A"}}]
[{"$nulls":5},41,"2012-06-10",{"$f":"SUMIFS(adatok[MÉRFÖLD],adatok[DÁTUM],G50,adatok[TEVÉKENYSÉG],$H$8)","v":0},{"$f":"IFERROR(AVERAGEIFS(adatok[MPG],adatok[DÁTUM],G50,adatok[TEVÉKENYSÉG],$I$8),NA())","v":{"$error":"#N/A"}},{"$f":"IFERROR(AVERAGEIFS(adatok[¢/MÉRFÖLD],adatok[DÁTUM],G50,adatok[TEVÉKENYSÉG],$J$8),NA())","v":{"$error":"#N/A"}}]
[{"$nulls":5},42,"2012-06-11",{"$f":"SUMIFS(adatok[MÉRFÖLD],adatok[DÁTUM],G51,adatok[TEVÉKENYSÉG],$H$8)","v":0},{"$f":"IFERROR(AVERAGEIFS(adatok[MPG],adatok[DÁTUM],G51,adatok[TEVÉKENYSÉG],$I$8),NA())","v":{"$error":"#N/A"}},{"$f":"IFERROR(AVERAGEIFS(adatok[¢/MÉRFÖLD],adatok[DÁTUM],G51,adatok[TEVÉKENYSÉG],$J$8),NA())","v":{"$error":"#N/A"}}]
[{"$nulls":5},43,"2012-06-12",{"$f":"SUMIFS(adatok[MÉRFÖLD],adatok[DÁTUM],G52,adatok[TEVÉKENYSÉG],$H$8)","v":0},{"$f":"IFERROR(AVERAGEIFS(adatok[MPG],adatok[DÁTUM],G52,adatok[TEVÉKENYSÉG],$I$8),NA())","v":{"$error":"#N/A"}},{"$f":"IFERROR(AVERAGEIFS(adatok[¢/MÉRFÖLD],adatok[DÁTUM],G52,adatok[TEVÉKENYSÉG],$J$8),NA())","v":{"$error":"#N/A"}}]
[{"$nulls":5},44,"2012-06-13",{"$f":"SUMIFS(adatok[MÉRFÖLD],adatok[DÁTUM],G53,adatok[TEVÉKENYSÉG],$H$8)","v":0},{"$f":"IFERROR(AVERAGEIFS(adatok[MPG],adatok[DÁTUM],G53,adatok[TEVÉKENYSÉG],$I$8),NA())","v":{"$error":"#N/A"}},{"$f":"IFERROR(AVERAGEIFS(adatok[¢/MÉRFÖLD],adatok[DÁTUM],G53,adatok[TEVÉKENYSÉG],$J$8),NA())","v":{"$error":"#N/A"}}]
[{"$nulls":5},45,"2012-06-14",{"$f":"SUMIFS(adatok[MÉRFÖLD],adatok[DÁTUM],G54,adatok[TEVÉKENYSÉG],$H$8)","v":0},{"$f":"IFERROR(AVERAGEIFS(adatok[MPG],adatok[DÁTUM],G54,adatok[TEVÉKENYSÉG],$I$8),NA())","v":{"$error":"#N/A"}},{"$f":"IFERROR(AVERAGEIFS(adatok[¢/MÉRFÖLD],adatok[DÁTUM],G54,adatok[TEVÉKENYSÉG],$J$8),NA())","v":{"$error":"#N/A"}}]
[{"$nulls":5},46,"2012-06-15",{"$f":"SUMIFS(adatok[MÉRFÖLD],adatok[DÁTUM],G55,adatok[TEVÉKENYSÉG],$H$8)","v":0},{"$f":"IFERROR(AVERAGEIFS(adatok[MPG],adatok[DÁTUM],G55,adatok[TEVÉKENYSÉG],$I$8),NA())","v":{"$error":"#N/A"}},{"$f":"IFERROR(AVERAGEIFS(adatok[¢/MÉRFÖLD],adatok[DÁTUM],G55,adatok[TEVÉKENYSÉG],$J$8),NA())","v":{"$error":"#N/A"}}]
[{"$nulls":5},47,"2012-06-16",{"$f":"SUMIFS(adatok[MÉRFÖLD],adatok[DÁTUM],G56,adatok[TEVÉKENYSÉG],$H$8)","v":0},{"$f":"IFERROR(AVERAGEIFS(adatok[MPG],adatok[DÁTUM],G56,adatok[TEVÉKENYSÉG],$I$8),NA())","v":{"$error":"#N/A"}},{"$f":"IFERROR(AVERAGEIFS(adatok[¢/MÉRFÖLD],adatok[DÁTUM],G56,adatok[TEVÉKENYSÉG],$J$8),NA())","v":{"$error":"#N/A"}}]
[{"$nulls":5},48,"2012-06-17",{"$f":"SUMIFS(adatok[MÉRFÖLD],adatok[DÁTUM],G57,adatok[TEVÉKENYSÉG],$H$8)","v":0},{"$f":"IFERROR(AVERAGEIFS(adatok[MPG],adatok[DÁTUM],G57,adatok[TEVÉKENYSÉG],$I$8),NA())","v":{"$error":"#N/A"}},{"$f":"IFERROR(AVERAGEIFS(adatok[¢/MÉRFÖLD],adatok[DÁTUM],G57,adatok[TEVÉKENYSÉG],$J$8),NA())","v":{"$error":"#N/A"}}]
[{"$nulls":5},49,"2012-06-18",{"$f":"SUMIFS(adatok[MÉRFÖLD],adatok[DÁTUM],G58,adatok[TEVÉKENYSÉG],$H$8)","v":0},{"$f":"IFERROR(AVERAGEIFS(adatok[MPG],adatok[DÁTUM],G58,adatok[TEVÉKENYSÉG],$I$8),NA())","v":{"$error":"#N/A"}},{"$f":"IFERROR(AVERAGEIFS(adatok[¢/MÉRFÖLD],adatok[DÁTUM],G58,adatok[TEVÉKENYSÉG],$J$8),NA())","v":{"$error":"#N/A"}}]
[{"$nulls":5},50,"2012-06-19",{"$f":"SUMIFS(adatok[MÉRFÖLD],adatok[DÁTUM],G59,adatok[TEVÉKENYSÉG],$H$8)","v":0},{"$f":"IFERROR(AVERAGEIFS(adatok[MPG],adatok[DÁTUM],G59,adatok[TEVÉKENYSÉG],$I$8),NA())","v":{"$error":"#N/A"}},{"$f":"IFERROR(AVERAGEIFS(adatok[¢/MÉRFÖLD],adatok[DÁTUM],G59,adatok[TEVÉKENYSÉG],$J$8),NA())","v":{"$error":"#N/A"}}]
[{"$nulls":5},51,"2012-06-20",{"$f":"SUMIFS(adatok[MÉRFÖLD],adatok[DÁTUM],G60,adatok[TEVÉKENYSÉG],$H$8)","v":0},{"$f":"IFERROR(AVERAGEIFS(adatok[MPG],adatok[DÁTUM],G60,adatok[TEVÉKENYSÉG],$I$8),NA())","v":{"$error":"#N/A"}},{"$f":"IFERROR(AVERAGEIFS(adatok[¢/MÉRFÖLD],adatok[DÁTUM],G60,adatok[TEVÉKENYSÉG],$J$8),NA())","v":{"$error":"#N/A"}}]
[{"$nulls":5},52,"2012-06-21",{"$f":"SUMIFS(adatok[MÉRFÖLD],adatok[DÁTUM],G61,adatok[TEVÉKENYSÉG],$H$8)","v":0},{"$f":"IFERROR(AVERAGEIFS(adatok[MPG],adatok[DÁTUM],G61,adatok[TEVÉKENYSÉG],$I$8),NA())","v":{"$error":"#N/A"}},{"$f":"IFERROR(AVERAGEIFS(adatok[¢/MÉRFÖLD],adatok[DÁTUM],G61,adatok[TEVÉKENYSÉG],$J$8),NA())","v":{"$error":"#N/A"}}]
[{"$nulls":5},53,"2012-06-22",{"$f":"SUMIFS(adatok[MÉRFÖLD],adatok[DÁTUM],G62,adatok[TEVÉKENYSÉG],$H$8)","v":0},{"$f":"IFERROR(AVERAGEIFS(adatok[MPG],adatok[DÁTUM],G62,adatok[TEVÉKENYSÉG],$I$8),NA())","v":{"$error":"#N/A"}},{"$f":"IFERROR(AVERAGEIFS(adatok[¢/MÉRFÖLD],adatok[DÁTUM],G62,adatok[TEVÉKENYSÉG],$J$8),NA())","v":{"$error":"#N/A"}}]
[{"$nulls":5},54,"2012-06-23",{"$f":"SUMIFS(adatok[MÉRFÖLD],adatok[DÁTUM],G63,adatok[TEVÉKENYSÉG],$H$8)","v":0},{"$f":"IFERROR(AVERAGEIFS(adatok[MPG],adatok[DÁTUM],G63,adatok[TEVÉKENYSÉG],$I$8),NA())","v":{"$error":"#N/A"}},{"$f":"IFERROR(AVERAGEIFS(adatok[¢/MÉRFÖLD],adatok[DÁTUM],G63,adatok[TEVÉKENYSÉG],$J$8),NA())","v":{"$error":"#N/A"}}]
[{"$nulls":5},55,"2012-06-24",{"$f":"SUMIFS(adatok[MÉRFÖLD],adatok[DÁTUM],G64,adatok[TEVÉKENYSÉG],$H$8)","v":0},{"$f":"IFERROR(AVERAGEIFS(adatok[MPG],adatok[DÁTUM],G64,adatok[TEVÉKENYSÉG],$I$8),NA())","v":{"$error":"#N/A"}},{"$f":"IFERROR(AVERAGEIFS(adatok[¢/MÉRFÖLD],adatok[DÁTUM],G64,adatok[TEVÉKENYSÉG],$J$8),NA())","v":{"$error":"#N/A"}}]
[{"$nulls":5},56,"2012-06-25",{"$f":"SUMIFS(adatok[MÉRFÖLD],adatok[DÁTUM],G65,adatok[TEVÉKENYSÉG],$H$8)","v":0},{"$f":"IFERROR(AVERAGEIFS(adatok[MPG],adatok[DÁTUM],G65,adatok[TEVÉKENYSÉG],$I$8),NA())","v":{"$error":"#N/A"}},{"$f":"IFERROR(AVERAGEIFS(adatok[¢/MÉRFÖLD],adatok[DÁTUM],G65,adatok[TEVÉKENYSÉG],$J$8),NA())","v":{"$error":"#N/A"}}]
[{"$nulls":5},57,"2012-06-26",{"$f":"SUMIFS(adatok[MÉRFÖLD],adatok[DÁTUM],G66,adatok[TEVÉKENYSÉG],$H$8)","v":0},{"$f":"IFERROR(AVERAGEIFS(adatok[MPG],adatok[DÁTUM],G66,adatok[TEVÉKENYSÉG],$I$8),NA())","v":{"$error":"#N/A"}},{"$f":"IFERROR(AVERAGEIFS(adatok[¢/MÉRFÖLD],adatok[DÁTUM],G66,adatok[TEVÉKENYSÉG],$J$8),NA())","v":{"$error":"#N/A"}}]
[{"$nulls":5},58,"2012-06-27",{"$f":"SUMIFS(adatok[MÉRFÖLD],adatok[DÁTUM],G67,adatok[TEVÉKENYSÉG],$H$8)","v":0},{"$f":"IFERROR(AVERAGEIFS(adatok[MPG],adatok[DÁTUM],G67,adatok[TEVÉKENYSÉG],$I$8),NA())","v":{"$error":"#N/A"}},{"$f":"IFERROR(AVERAGEIFS(adatok[¢/MÉRFÖLD],adatok[DÁTUM],G67,adatok[TEVÉKENYSÉG],$J$8),NA())","v":{"$error":"#N/A"}}]
[{"$nulls":5},59,"2012-06-28",{"$f":"SUMIFS(adatok[MÉRFÖLD],adatok[DÁTUM],G68,adatok[TEVÉKENYSÉG],$H$8)","v":0},{"$f":"IFERROR(AVERAGEIFS(adatok[MPG],adatok[DÁTUM],G68,adatok[TEVÉKENYSÉG],$I$8),NA())","v":{"$error":"#N/A"}},{"$f":"IFERROR(AVERAGEIFS(adatok[¢/MÉRFÖLD],adatok[DÁTUM],G68,adatok[TEVÉKENYSÉG],$J$8),NA())","v":{"$error":"#N/A"}}]
[{"$nulls":5},60,"2012-06-29",{"$f":"SUMIFS(adatok[MÉRFÖLD],adatok[DÁTUM],G69,adatok[TEVÉKENYSÉG],$H$8)","v":0},{"$f":"IFERROR(AVERAGEIFS(adatok[MPG],adatok[DÁTUM],G69,adatok[TEVÉKENYSÉG],$I$8),NA())","v":{"$error":"#N/A"}},{"$f":"IFERROR(AVERAGEIFS(adatok[¢/MÉRFÖLD],adatok[DÁTUM],G69,adatok[TEVÉKENYSÉG],$J$8),NA())","v":{"$error":"#N/A"}}]